{"text_format":"1","workbook":"xlsx","n_sheets":2,"sheets":["【様式1】申請書 ","【様式2】費用積算書"],"not_rendered":{"charts":0,"images":0,"macros":1,"external_links":0,"defined_names":23,"comments":0,"pivot_tables":0},"unopened":[],"bounds":{"document_bytes":16777216,"sheet_cells":100000,"rows_first":2000,"rows_last":500,"rows_between":2000,"halvings":0,"cell_chars":16384,"cell_head_chars":4096},"cells_cut":0,"cells_raw":0,"read":"whole","date_system":"1900"}

{"sheet":"【様式1】申請書 ","index":0,"n_rows":30,"n_cols":13,"rows_kept":30,"cut":false,"hidden":false,"merged":[[10,2,10,14],[25,1,27,1],[25,2,27,14],[13,0,24,0],[13,1,15,1],[13,2,15,14],[16,1,18,1],[16,2,18,14],[19,2,21,14],[22,1,24,1],[22,2,24,14],[19,1,21,1],[11,1,12,1],[11,2,12,14],[25,0,27,0],[0,12,0,14],[0,0,0,1],[1,0,1,14],[2,11,2,14],[3,0,12,0],[3,9,3,14],[5,1,6,1],[5,2,5,14],[6,2,6,14],[7,9,7,14],[3,2,3,7],[8,2,8,14],[9,2,9,14],[4,9,4,14],[4,1,4,7],[7,2,7,7]]}
["【様式1】",null,null,null,null,null,null,null,null,null,null,null,"提出日　　　　年　　月　　日"]
["令和8年度「能登半島地震からの復興に向けた観光再生支援事業」２次公募　申請書"]
[null,null,null,null,null,null,null,null,null,null,null,"※ピンク色のセルに記入してください"]
["１．申請者","（１）申請主体名","○○温泉協会",null,null,null,null,null,"（２）代表者名","（役職）　〇〇　〇〇"]
[null,"※採択事業を公表する際に申請する取組名・申請主体名・代表者名・申請主体の所在地（市町村単位）、本事業の概要を公表いたしますので、お間違いのないようにご記入ください。",null,null,null,null,null,null,"（３）経理担当者名","（役職）　〇〇　〇〇"]
[null,"（4）所在地","〒"]
[null,null,"〇〇県〇〇市〇〇△ー□ー××"]
[null,"（5）担当者名","※統括責任者ががわかるように記載してください",null,null,null,null,null,"（6）電話番号","(日中に連絡が取れる番号)"]
[null,"（7）メールアドレス"]
[null,"（8）申請する取組名","（例）〇〇温泉の災害復旧に向けたリバイバルプラン"]
[null,"（9）本事業の概要","※取り組まれる事業の概要を1～２行で簡潔にご説明願います。"]
[null,"（10）実施体制・役割分担"]
[]
["２．取り組みを行う地域の状況について\n","（１）取組を行う観光地の被災状況\n","A〇〇温泉街は～～温泉や△△が名物である。しかし令和2年7月豪雨の影響で、甚大な被害を受け、観光客は激減し～～。"]
[]
[]
[null,"（２）現状と課題を踏まえ、今回行う取り組みの概要","今回の災害からの復旧に向け～～、地域一体でリバイバルプランを策定し、新たなビジネスモデルを構築するとともに、集客力を高めるために～～、個々の施設の〇〇の改修を行い・・・。"]
[]
[]
[null,"（３）取組を行うにあたり必要とする専門家・アドバイザー（複数可能）","・地域のブランディングのための～～、経営コンサルタント…〇〇のため、～～を分析し～。補助金の申請サポートや、金融機関との調整を～～。\n"]
[]
[]
[null,"（４）今回の取組により期待される効果、目指すべき姿\n","新たなビジネスモデルと集客力の高い〇〇により、新たな〇〇層を取り込むことができ・・・。"]
[]
[]
["3．希望する取組について","観光地・観光事業者の復旧・復興計画の作成などの支援　","○○地域について、既存の観光戦略を見直し、地域にとって有力な観光資源である△△を主軸に置いた新たなマーケティング戦略を策定。復興から観光客の誘致に向けた計画を策定する。"]
[]
[]
["※必要に応じて欄を拡大するなどして記載してください。複数枚となっても構いません。"]
["※取組の内容が法令に違反することが判明した場合、又は、申請の内容に虚偽があった場合には、直ちに選定を取り消し、支援額の全額返還を求めることがあります。"]

{"sheet":"【様式2】費用積算書","index":1,"n_rows":34,"n_cols":8,"rows_kept":34,"cut":false,"hidden":false,"merged":[[24,0,29,1],[24,7,24,8],[26,7,26,8],[29,7,29,8],[8,0,23,1],[25,7,25,8],[27,7,27,8],[18,7,18,8],[21,7,21,8],[22,7,22,8],[23,7,23,8],[52,0,52,5],[52,7,52,8],[47,7,47,8],[48,7,48,8],[49,7,49,8],[50,2,50,5],[51,0,51,1],[51,7,51,8],[30,0,30,5],[31,0,31,5],[32,0,32,5],[32,7,32,8],[33,0,33,8],[9,7,9,8],[10,7,10,8],[19,7,19,8],[20,7,20,8],[39,7,39,8],[0,7,0,8],[2,0,2,8],[4,1,4,2],[4,4,4,8],[8,7,8,8],[7,0,7,1],[7,7,7,8],[5,5,5,8],[6,7,6,8],[0,0,0,1],[6,0,6,1]]}
["【様式２】",null,null,null,null,null,null,{"$f":"'【様式1】申請書 '!M1","v":"提出日　　　　年　　月　　日"}]
[]
["令和8年度「能登半島地震からの復興に向けた観光再生支援事業」２次公募　費用積算書"]
[]
["申請者：",{"$f":"'【様式1】申請書 '!C4","v":"○○温泉協会"}]
[null,null,null,null,null,"※ピンク色のセルに記入してください"]
[null,null,null,null,null,null,null,"（単位：千円）"]
["項目",null,"内訳","数量","単位","単価","金額","備考"]
["観光地・観光事業者の復旧・復興計画の作成などの支援",null,"マーケティング調査",3,"回",100,{"$f":"D9*F9","v":300},"アンケート調査"]
[null,null,"○○旅館における改修プランの策定",1,"式",20000,20000,"アドバイザー派遣費○円、事前調査費○円"]
[null,null,null,null,null,null,0]
[null,null,null,null,null,null,{"$f":"D12*F12","v":0}]
[null,null,null,null,null,null,0]
[null,null,null,null,null,null,0]
[null,null,null,null,null,null,0]
[null,null,null,null,null,null,{"$f":"D16*F16","v":0}]
[null,null,null,null,null,null,0]
[null,null,null,null,null,null,0]
[null,null,null,null,null,null,0]
[null,null,null,null,null,null,0]
[null,null,null,null,null,null,0]
[null,null,null,null,null,null,{"$f":"D22*F22","v":0}]
[null,null,null,null,null,null,0]
[null,null,null,null,null,null,0]
["専門家派遣に必要な経費",null,"専門家謝金A",10,"回",50,{"$f":"D25*F25","v":500},"○○市旅費規定による"]
[null,null,"専門家謝金B",10,"回",30,{"$f":"D26*F26","v":300},"○○市旅費規定による"]
[null,null,"専門家交通費A",10,"回",50,{"$f":"D27*F27","v":500},"実費支給"]
[null,null,"専門家交通費B",10,"回",50,500,"実費支給"]
[null,null,null,null,null,null,0]
[null,null,null,null,null,null,0]
["小計　①",null,null,null,null,null,{"$f":"SUM(G9:G30)","v":22100}]
["消費税　①×10％",null,null,null,null,null,{"$f":"G31*0.1","v":2210}]
["合計",null,null,null,null,null,{"$f":"G31+G32","v":24310}]
["※必要に応じて、欄等を追加・削除して作成ください。"]